lending/lending_fUSD_20251020
["ID","MTS","AMOUNT","RATE_DAILY","PERIOD"]
[391926066,1760997133461,500.0,0.00034345,30]
[391926067,1760997133547,500.0,0.00034345,30]
[391926068,1760997134112,500.0,0.00034345,30]
[391926069,1760997134185,500.0,0.00034345,30]
[391926070,1760997134470,151.0,0.00034345,30]
[391926071,1760997134859,500.0,0.00034345,30]
[391926072,1760997135117,151.0,0.00034345,30]
[391926073,1760997135499,500.0,0.00034345,30]
[391926074,1760997135785,151.0,0.00034345,30]
[391926075,1760997136107,500.0,0.00034345,30]
[391926076,1760997136402,151.0,0.00034345,30]
[391926077,1760997136754,500.0,0.00034345,30]
[391926078,1760997137089,151.0,0.00034345,30]
[391926079,1760997137432,500.0,0.00034345,30]
[391926080,1760997137715,151.0,0.00034345,30]
[391926081,1760997138075,500.0,0.00034345,30]
[391926082,1760997138741,500.0,0.00034345,30]
[391926083,1760997139393,500.0,0.00034345,30]
[391926084,1760997140061,500.0,0.00034345,30]
[391926085,1760997140757,500.0,0.00034345,30]
[391926086,1760997141372,500.0,0.00034345,30]
[391926087,1760997141989,500.0,0.00034345,30]
[391926088,1760997143131,300.0,0.00034345,30]
[391926089,1760997143779,300.0,0.00034345,30]
[391926090,1760997147212,250.0,0.00034345,30]
[391926091,1760997148117,250.0,0.00034345,30]
[391926092,1760997148797,250.0,0.00034345,30]
[391926102,1760997426084,193.3919763,0.00034345,30]
[391926103,1760997429370,201.12765535,0.00034345,30]
[391926104,1760997429422,227.68844372,0.00034345,30]
[391926105,1760997431847,313.39690899,0.00034345,30]
[391926119,1760997916115,-150.0,0.00013488,2]
[391926120,1760997916138,-120.98205017,0.00013488,2]
[391926121,1760997930497,-29.01794983,0.00013488,2]
[391926122,1760997930520,-150.0,0.00013488,2]
[391926123,1760997930541,-18.17005017,0.00013488,2]
[391926124,1760997945514,-240.59250355,0.00013488,2]
[391926125,1760997945535,-142.12157621,0.00013488,2]
[391926126,1760997948570,-7.8784238,0.00013488,2]
[391926127,1760997948592,-220.93837237,0.00013488,2]
[391926128,1760997948614,-71.18320383,0.00013488,2]
[391926134,1760997976156,-78.81679617,0.00013488,2]
[391926135,1760997976185,-152.53987479,0.00013488,2]
[391926155,1760998216755,150.0,0.00016017,120]
[391926173,1760998232144,-20.24207544,0.00013488,2]
[391926174,1760998232154,-228.66690578,0.00013488,2]
[391926175,1760998232164,-45.55239165,0.000147,2]
[391926176,1760998232176,-454.44760835,0.000147,2]
[391926177,1760998232186,-500.0,0.000147,2]
[391926178,1760998232198,-487.26438769,0.000147,2]
[391926179,1760998232208,-167.1122217,0.00014797,2]
[391926180,1760998232219,-443.46105,0.0001485,2]
[391926181,1760998232228,-300.0,0.00014896,2]
[391926182,1760998232242,-989.0,0.00014896,2]
[391926183,1760998232252,-300.0,0.00014896,2]
[391926184,1760998232262,-1200.0,0.00014897,2]
[391926185,1760998232271,-1274.6462179,0.00014899,2]
[391926186,1760998232281,-549.922,0.00014899,2]
[391926187,1760998232291,-150.0,0.00014899,2]
[391926188,1760998232304,-661.61468995,0.000149,2]
[391926189,1760998232315,-661.61468995,0.000149,2]
[391926190,1760998232324,-234.018,0.000149,2]
[391926191,1760998232334,-4695.1202,0.000149,2]
[391926192,1760998232344,-1000.0,0.000149,2]
[391926193,1760998232354,-2445.3092,0.000149,2]
[391926194,1760998232364,-33132.8933481,0.000149,2]
[391926195,1760998232374,-15013.6273049,0.000149,2]
[391926196,1760998232383,-160.3595855,0.000149,2]
[391926198,1760998232393,-164.02439505,0.000149,2]
[391926200,1760998232402,-151.0,0.00014971,2]
[391926202,1760998232412,-503.64435126,0.00014973,2]
[391926204,1760998232422,-502.74837759,0.00014973,2]
[391926205,1760998232431,-15718.3287536,0.00014975,2]
[391926206,1760998232441,-4108.9868152,0.00014977,2]
[391926207,1760998232451,-238.9223223,0.00014977,2]
[391926208,1760998232461,-1582.0587385,0.00014977,2]
[391926209,1760998232471,-153.28350394,0.00014985,2]
[391926210,1760998232480,-150.0,0.00014986,2]
[391926211,1760998232490,-150.0,0.00014986,2]
[391926212,1760998232504,-150.0,0.00014986,2]
[391926213,1760998232514,-160.118,0.00014999,2]
[391926214,1760998232524,-500.0,0.00014999,2]
[391926215,1760998232534,-500.0,0.00014999,2]
[391926216,1760998232543,-500.0,0.00014999,2]
[391926217,1760998232552,-500.0,0.00014999,2]
[391926218,1760998232563,-500.0,0.00014999,2]
[391926219,1760998232572,-500.0,0.00014999,2]
[391926220,1760998232583,-500.0,0.00014999,2]
[391926221,1760998232592,-500.0,0.00014999,2]
[391926222,1760998232602,-500.0,0.00014999,2]
[391926223,1760998232612,-526.15038518,0.00014999,2]
[391926224,1760998232622,-500.0,0.00014999,2]
[391926225,1760998232632,-500.0,0.00014999,2]
[391926226,1760998232641,-500.0,0.00014999,2]
[391926227,1760998232651,-2214.39235978,0.00015,2]
[391926228,1760998232664,-3594.3573025,0.00015,2]
[391926229,1760998232679,-1230.35456567,0.00015,2]
[391926230,1760998232691,-272.72071986,0.00015,2]
[391926231,1760998232711,-28503.23413451,0.00015,2]
[391926232,1760998232723,-556.79319998,0.00015,2]
[391926233,1760998232734,-261.2121,0.00015,2]
[391926240,1760998238221,-500.0,0.00014899,2]
[391926241,1760998238241,-51.09530478,0.00014899,2]
[391926242,1760998238255,-448.90469522,0.00014899,2]
[391926243,1760998238265,-500.0,0.00014899,2]
[391926244,1760998238275,-500.0,0.00014899,2]
[391926245,1760998238285,-357.56826629,0.00014899,2]
[391926247,1760998238295,-500.0,0.00014899,2]
[391926249,1760998238304,-500.0,0.00014899,2]
[391926251,1760998238314,-500.0,0.00014899,2]
[391926253,1760998238323,-500.0,0.00014899,2]
[391926256,1760998238333,-106036.95370236,0.00015,2]
[391926258,1760998238345,-614.50301947,0.00015,2]
[391926260,1760998238356,-603.22941727,0.00015,2]
[391926263,1760998238376,-5856.26649882,0.00015,2]
[391926265,1760998238388,-1471.0953936,0.00015,2]
[391926267,1760998238399,-5922.69690734,0.00015,2]
[391926270,1760998238411,-527.39191018,0.00015,2]
[391926273,1760998238430,-835.47625429,0.00015,2]
[391926275,1760998238442,-3414.3955018,0.00015,2]
[391926277,1760998238463,-22877.13477734,0.00015,2]
[391926424,1760998240153,-134340.8837987,0.00015,2]
[391926446,1760998240369,-44701.09916656,0.00015,2]
[391926452,1760998240422,-141680.20845204,0.00015,2]
[391926740,1760998243216,-2035.66445295,0.00015,2]
[391926747,1760998243272,-260.95,0.00015,2]
[391926771,1760998243495,-2037.54377747,0.00015,2]
[391927051,1760998246452,-5645.6445779,0.00015,2]
[391927053,1760998246463,-627.44330586,0.00015,2]
[391927190,1760998325163,379.7686959,0.00034345,30]
[391927191,1760998325254,500.0,0.00034345,30]
[391927192,1760998325631,520.0,0.00034345,30]
[391927193,1760998325691,182.84743364,0.00034345,30]
[391927194,1760998325750,500.0,0.00034345,30]
[391927195,1760998325914,500.0,0.00034345,30]
[391927196,1760998326582,500.0,0.00034345,30]
[391927197,1760998326906,500.0,0.00034345,30]
[391927198,1760998327197,500.0,0.00034345,30]
[391927199,1760998327542,500.0,0.00034345,30]
[391927200,1760998328457,500.0,0.00034345,30]
[391927201,1760998328564,500.0,0.00034345,30]
[391927202,1760998328694,500.0,0.00034345,30]
[391927203,1760998328951,500.0,0.00034345,30]
[391927204,1760998329227,500.0,0.00034345,30]
[391927205,1760998329336,500.0,0.00034345,30]
[391927206,1760998329399,600.0,0.00034345,30]
[391927207,1760998329449,250.0,0.00034345,30]
[391927208,1760998329966,500.0,0.00034345,30]
[391927209,1760998330099,250.0,0.00034345,30]
[391927210,1760998330914,500.0,0.00034345,30]
[391927211,1760998330980,250.0,0.00034345,30]
[391927212,1760998331130,469.64745598,0.00034345,30]
[391927213,1760998331317,500.0,0.00034345,30]
[391927214,1760998331413,250.0,0.00034345,30]
[391927215,1760998331960,500.0,0.00034345,30]
[391927216,1760998332011,500.0,0.00034345,30]
[391927217,1760998332076,250.0,0.00034345,30]
[391927218,1760998332609,500.0,0.00034345,30]
[391927219,1760998332658,500.0,0.00034345,30]
[391927220,1760998332710,250.0,0.00034345,30]
[391927221,1760998333281,500.0,0.00034345,30]
[391927222,1760998333337,250.0,0.00034345,30]
[391927223,1760998333389,500.0,0.00034345,30]
[391927224,1760998333895,500.0,0.00034345,30]
[391927225,1760998333949,500.0,0.00034345,30]
[391927226,1760998334000,250.0,0.00034345,30]
[391927227,1760998334570,500.0,0.00034345,30]
[391927228,1760998334643,250.0,0.00034345,30]
[391927229,1760998334695,500.0,0.00034345,30]
[391927230,1760998335243,500.0,0.00034345,30]
[391927231,1760998335307,250.0,0.00034345,30]
[391927232,1760998335371,500.0,0.00034345,30]
[391927233,1760998335873,250.0,0.00034345,30]
[391927234,1760998335924,500.0,0.00034345,30]
[391927235,1760998335994,500.0,0.00034345,30]
[391927236,1760998336546,500.0,0.00034345,30]
[391927237,1760998336630,500.0,0.00034345,30]
[391927238,1760998336877,151.0,0.00034345,30]
[391927239,1760998337213,500.0,0.00034345,30]
[391927240,1760998337276,500.0,0.00034345,30]
[391927241,1760998337872,500.0,0.00034345,30]
[391927242,1760998337932,500.0,0.00034345,30]
[391927243,1760998338584,500.0,0.00034345,30]
[391927244,1760998338638,500.0,0.00034345,30]
[391927245,1760998339252,500.0,0.00034345,30]
[391927246,1760998339330,500.0,0.00034345,30]
[391927247,1760998339894,500.0,0.00034345,30]
[391927248,1760998340543,500.0,0.00034345,30]
[391927249,1760998341231,500.0,0.00034345,30]
[391927250,1760998341850,500.0,0.00034345,30]
[391927251,1760998342216,250.0,0.00034345,30]
[391927252,1760998342529,500.0,0.00034345,30]
[391927253,1760998343106,250.0,0.00034345,30]
[391927254,1760998343210,500.0,0.00034345,30]
[391927255,1760998343563,250.0,0.00034345,30]
[391927256,1760998343939,500.0,0.00034345,30]
[391927257,1760998344266,250.0,0.00034345,30]
[391927258,1760998344608,500.0,0.00034345,30]
[391927259,1760998344937,250.0,0.00034345,30]
[391927260,1760998345603,250.0,0.00034345,30]
[391927261,1760998346264,250.0,0.00034345,30]
[391927262,1760998346911,250.0,0.00034345,30]
[391927263,1760998347575,250.0,0.00034345,30]
[391927264,1760998348261,250.0,0.00034345,30]
[391927265,1760998348912,250.0,0.00034345,30]
[391927280,1760998622179,1000.0,0.00030137,120]
[391927281,1760998624893,500.0,0.00034346,30]
[391927282,1760998624946,178.10481365,0.00034346,30]
[391927283,1760998625517,500.0,0.00034346,30]
[391927284,1760998630890,256.43032538,0.00034346,30]
[391927285,1760998636236,500.0,0.00034346,30]
[391927286,1760998636898,500.0,0.00034346,30]
[391927287,1760998637546,500.0,0.00034346,30]
[391927288,1760998638236,500.0,0.00034346,30]
[391927293,1760998678638,5869.82761183,0.00034335,30]
[391927303,1760998822649,-181.05215253,0.00014147,2]
[391927304,1760998822672,-148.78362977,0.00014258,2]
[391927305,1760998824499,-101.21637023,0.00014258,2]
[391927306,1760998824523,-301.33,0.00014418,2]
[391927307,1760998824549,-27.62582931,0.000146,2]
[391927308,1760998827382,-238.35617069,0.000146,2]
[391927309,1760998827408,-59.75119534,0.00014666,2]
[391927310,1760998830685,-379.02341597,0.000147,2]
[391927311,1760998833470,-383.95034293,0.00014599,2]
[391927312,1760998835616,-431.85826948,0.00014599,2]
[391927313,1760998835639,-55.50747713,0.000147,2]
[391927318,1760998852145,-5.4061069,0.000147,2]
[391927319,1760998852181,-325.07729457,0.00014735,2]
[391927320,1760998854882,-245.05071539,0.00014735,2]
[391927321,1760998856317,-184.75224072,0.00014735,2]
[391927322,1760998859723,-273.92752923,0.00014735,2]
[391927323,1760998861814,-245.70097785,0.00014735,2]
[391927324,1760998864095,-185.32031009,0.00014735,2]
[391927325,1760998865886,-232.04779349,0.00014735,2]
[391927326,1760998882843,-156.16058449,0.00014735,2]
[391927327,1760998885689,-409.38578089,0.00014735,2]
[391927328,1760998888650,-166.66,0.00014735,2]
[391927336,1760999076222,303.28,7.137e-05,2]
[391927337,1760999076416,303.28,7.512e-05,2]
[391927338,1760999076636,303.28,7.888e-05,2]
[391927339,1760999076835,303.28,8.264e-05,2]
[391927340,1760999077040,303.28,8.639e-05,2]
[391927341,1760999077273,303.28,9.015e-05,2]
[391927342,1760999077491,303.28,9.39e-05,2]
[391927343,1760999077692,303.28,9.766e-05,2]
[391927344,1760999077920,303.28,0.00010142,2]
[391927345,1760999078137,303.28,0.00010517,2]
[391927346,1760999078365,303.28,0.00010893,2]
[391927347,1760999078568,303.28,0.00011268,2]
[391927348,1760999078774,303.28,0.00011644,2]
[391927349,1760999079361,303.28,0.0001202,2]
[391927350,1760999079569,303.28,0.00012395,2]
[391927351,1760999079781,303.28,0.00012771,2]
[391927352,1760999079978,303.28,0.00013147,2]
[391927353,1760999092626,-219.85421918,0.00013522,2]
[391927354,1760999094160,-83.42578082,0.00013522,2]
[391927355,1760999094184,-68.18171493,0.00013898,2]
[391927356,1760999096294,-161.13120818,0.00013898,2]
[391927359,1760999122090,-150.0,0.00013488,2]
[391927360,1760999122114,-13.70091378,0.00013488,2]
[391927361,1760999137012,-136.29908622,0.00013488,2]
[391927362,1760999137036,-150.0,0.00013488,2]
[391927363,1760999137059,-23.23747241,0.00013488,2]
[391927366,1760999200910,-126.76252759,0.00013488,2]
[391927367,1760999200940,-73.96707689,0.00013898,2]
[391927368,1760999200967,-6013.98,0.0001402,2]
[391927369,1760999200998,-253.0,0.00014123,2]
[391927370,1760999201024,-1000.0,0.0001423,2]
[391927371,1760999201056,-303.28,0.00014273,2]
[391927372,1760999201085,-317.0,0.00014373,2]
[391927373,1760999201113,-33171.55,0.00014374,2]
[391927374,1760999201139,-292.96677328,0.00014735,2]
[391927375,1760999201165,-5999.41,0.00014836,2]
[391927376,1760999201192,-369.55088,0.0001485,2]
[391927377,1760999201219,-151.0,0.00014897,2]
[391927378,1760999201248,-278.8137,0.00014899,2]
[391927379,1760999201277,-395.0,0.00014899,2]
[391927380,1760999201304,-150.0,0.00014899,2]
[391927381,1760999201337,-500.0,0.00014899,2]
[391927382,1760999201369,-505.8601711,0.00014899,2]
[391927383,1760999201401,-500.0,0.00014899,2]
[391927384,1760999201434,-500.0,0.00014899,2]
[391927385,1760999201467,-500.0,0.00014899,2]
[391927386,1760999201495,-500.0,0.00014899,2]
[391927387,1760999201525,-500.0,0.00014899,2]
[391927388,1760999201569,-500.0,0.00014899,2]
[391927389,1760999201600,-500.0,0.00014899,2]
[391927390,1760999201631,-500.0,0.00014899,2]
[391927391,1760999201661,-500.0,0.00014899,2]
[391927392,1760999201692,-500.0,0.00014899,2]
[391927393,1760999201725,-500.0,0.00014899,2]
[391927394,1760999201758,-500.0,0.00014899,2]
[391927395,1760999201790,-500.0,0.00014899,2]
[391927396,1760999201821,-500.0,0.00014899,2]
[391927397,1760999201852,-500.0,0.00014899,2]
[391927398,1760999201885,-500.0,0.00014899,2]
[391927399,1760999201918,-500.0,0.00014899,2]
[391927400,1760999201952,-500.0,0.00014899,2]
[391927401,1760999201986,-500.0,0.00014899,2]
[391927402,1760999202020,-500.0,0.00014899,2]
[391927403,1760999202053,-500.0,0.00014899,2]
[391927404,1760999202088,-500.0,0.00014899,2]
[391927405,1760999202119,-500.0,0.00014899,2]
[391927406,1760999202154,-500.0,0.00014899,2]
[391927407,1760999202187,-500.0,0.00014899,2]
[391927408,1760999202221,-500.0,0.00014899,2]
[391927409,1760999202426,-500.0,0.00014899,2]
[391927410,1760999202460,-500.0,0.00014899,2]
[391927411,1760999202496,-500.0,0.00014899,2]
[391927412,1760999202527,-500.0,0.00014899,2]
[391927413,1760999202558,-500.0,0.00014899,2]
[391927414,1760999202590,-500.0,0.00014899,2]
[391927415,1760999202623,-500.0,0.00014899,2]
[391927416,1760999202653,-500.0,0.00014899,2]
[391927417,1760999202683,-500.0,0.00014899,2]
[391927418,1760999202713,-500.0,0.00014899,2]
[391927419,1760999202743,-500.0,0.00014899,2]
[391927420,1760999202776,-500.0,0.00014899,2]
[391927421,1760999202806,-500.0,0.00014899,2]
[391927422,1760999202836,-500.0,0.00014899,2]
[391927423,1760999202863,-1000.0,0.000149,2]
[391927424,1760999202891,-14117.47513391,0.000149,2]
[391927425,1760999202919,-164.02439503,0.000149,2]
[391927426,1760999202945,-1000.0,0.000149,2]
[391927427,1760999202974,-168.0,0.00014961,2]
[391927428,1760999202998,-500.56534583,0.00014973,2]
[391927429,1760999203026,-160.0139298,0.00014973,2]
[391927430,1760999203051,-574.97461915,0.00014973,2]
[391927431,1760999203077,-500.0,0.00014973,2]
[391927432,1760999203102,-500.0,0.00014973,2]
[391927433,1760999203127,-279.34590448,0.00014986,2]
[391927434,1760999203153,-175.28577664,0.00014986,2]
[391927435,1760999203177,-170.1321002,0.00014986,2]
[391927436,1760999203202,-155.20340553,0.00014986,2]
[391927437,1760999203227,-151.0,0.00014996,2]
[391927438,1760999203252,-351.95,0.00014997,2]
[391927439,1760999203282,-151.0,0.00014997,2]
[391927440,1760999203305,-150.0,0.00014998,2]
[391927441,1760999203329,-150.0,0.00014998,2]
[391927442,1760999203356,-150.0,0.00014998,2]
[391927443,1760999203381,-150.0,0.00014998,2]
[391927444,1760999203407,-150.0,0.00014998,2]
[391927445,1760999203433,-150.0,0.00014998,2]
[391927446,1760999203457,-150.0,0.00014998,2]
[391927447,1760999203481,-150.0,0.00014998,2]
[391927448,1760999203507,-202.32940799,0.00014998,2]
[391927449,1760999203532,-500.0,0.00014998,2]
[391927450,1760999203555,-245.57239912,0.00014998,2]
[391927451,1760999203579,-500.0,0.00014998,2]
[391927452,1760999203603,-150.0,0.00014998,2]
[391927453,1760999203627,-449.38,0.00014998,2]
[391927454,1760999203657,-150.0,0.00014998,2]
[391927455,1760999203684,-500.0,0.00014998,2]
[391927456,1760999203709,-150.0,0.00014998,2]
[391927457,1760999203734,-150.0,0.00014998,2]
[391927458,1760999203758,-262.45325951,0.00014998,2]
[391927459,1760999203783,-150.0,0.00014998,2]
[391927460,1760999203808,-150.0,0.00014998,2]
[391927461,1760999203832,-150.0,0.00014998,2]
[391927462,1760999203856,-150.0,0.00014998,2]
[391927463,1760999203880,-200.0,0.00014998,2]
[391927464,1760999203906,-150.0,0.00014998,2]
[391927465,1760999203930,-1000.0,0.00014999,2]
[391927466,1760999203969,-45748.8830676,0.00014999,2]
[391927467,1760999203995,-500.0,0.00014999,2]
[391927468,1760999204023,-500.0,0.00014999,2]
[391927469,1760999204048,-319.07420778,0.00014999,2]
[391927470,1760999204073,-3142.0472912,0.00014999,2]
[391927471,1760999204099,-1121.4132936,0.00014999,2]
[391927472,1760999204126,-335.22,0.00014999,2]
[391927473,1760999204152,-500.0,0.00014999,2]
[391927474,1760999204177,-500.0,0.00014999,2]
[391927475,1760999204200,-514.27743823,0.00014999,2]
[391927476,1760999204227,-162888.23789554,0.00015,2]
[391927497,1760999356276,532.59292311,0.00034335,30]
[391927504,1760999432480,-2494.438451,0.00014825,2]
[391927505,1760999432491,-164.02439503,0.000149,2]
[391927506,1760999432501,-208.78508409,0.000149,2]
[391927507,1760999432510,-1000.0,0.000149,2]
[391927508,1760999432522,-219.01455026,0.000149,2]
[391927509,1760999432531,-353.52112482,0.000149,2]
[391927510,1760999432541,-2500.0,0.000149,2]
[391927511,1760999432550,-175.30623446,0.000149,2]
[391927512,1760999432559,-160.35958553,0.000149,2]
[391927513,1760999432569,-500.0,0.00014973,2]
[391927514,1760999432580,-1000.0,0.00014999,2]
[391927515,1760999432589,-500.0,0.00014999,2]
[391927516,1760999432598,-500.0,0.00014999,2]
[391927517,1760999432607,-500.0,0.00014999,2]
[391927518,1760999432616,-266.46495256,0.00014999,2]
[391927519,1760999432625,-500.0,0.00014999,2]
[391927520,1760999432635,-500.0,0.00014999,2]
[391927521,1760999432644,-500.0,0.00014999,2]
[391927522,1760999432653,-500.0,0.00014999,2]
[391927523,1760999432663,-500.0,0.00014999,2]
[391927524,1760999432672,-500.0,0.00014999,2]
[391927525,1760999432681,-500.0,0.00014999,2]
[391927526,1760999432690,-500.0,0.00014999,2]
[391927527,1760999432699,-500.0,0.00014999,2]
[391927528,1760999432708,-500.0,0.00014999,2]
[391927529,1760999432718,-500.0,0.00014999,2]
[391927531,1760999432727,-500.0,0.00014999,2]
[391927532,1760999432737,-500.0,0.00014999,2]
[391927533,1760999432746,-500.0,0.00014999,2]
[391927534,1760999432755,-500.0,0.00014999,2]
[391927535,1760999432765,-500.0,0.00014999,2]
[391927536,1760999432774,-205822.14198117,0.00015,2]
[391927537,1760999432785,-94094.50849042,0.00015,2]
[391927918,1760999445898,-0.00808659,0.00015,2]
[391927919,1760999445908,-91869.99510295,0.00015,2]
[391927920,1760999445997,-4928.27721203,0.00015,2]
[391927921,1760999446376,-3167.46082012,0.00015,2]
[391927922,1760999446393,-35091.47832718,0.00015,2]
[391927925,1760999447082,-262.6,0.00015,2]
[391927926,1760999447097,-2010.56425723,0.00015,2]
[391927927,1760999526409,644.79446245,0.00034335,30]
[391927928,1760999528862,6888.0,0.00034335,30]
[391927929,1760999528929,151.0,0.00034335,30]
[391927930,1760999531504,7142.856,0.00034335,30]
[391927931,1760999531998,280.5066913,0.00034335,30]
[391927932,1760999532169,7407.141672,0.00034335,30]
[391927933,1760999532820,7681.20591386,0.00034335,30]
[391927934,1760999533583,7965.41053268,0.00034335,30]
[391927935,1760999534162,8260.13072239,0.00034335,30]
[391927936,1760999534785,8565.75555911,0.00034335,30]
[391927937,1760999535409,8882.6885148,0.00034335,30]
[391927938,1760999536058,9211.34798985,0.00034335,30]
[391927939,1760999536707,9552.16786547,0.00034335,30]
[391927940,1760999537388,9552.16786547,0.00034335,30]
[391927941,1760999557313,-280.14610111,0.000147,2]
[391927942,1760999572084,-124.25789889,0.000147,2]
[391927943,1760999572108,-166.66653195,0.00014799,2]
[391927944,1760999588246,-109.50833585,0.00014799,2]
[391927945,1760999588271,-58.09585312,0.00014873,2]
[391927946,1760999590266,-208.79,0.00014873,2]
[391927947,1760999592334,-233.11414688,0.00014873,2]
[391927948,1760999592364,-116.96506432,0.00014898,2]
[391927949,1760999602073,-69.92814497,0.00014898,2]
[391927950,1760999602097,-96.73185503,0.00014898,2]
[391927953,1760999632087,-274.37636119,0.00013699,2]
[391927958,1760999678855,-6.27363881,0.00013699,2]
[391927959,1760999678880,-53.26814497,0.00014898,2]
[391927960,1760999678903,-92.98102813,0.00014899,2]
[391927961,1760999680910,-304.59301344,0.00014899,2]
[391927962,1760999682538,-262.55680876,0.00014899,2]
[391927963,1760999684178,-250.86914967,0.00014899,2]
[391927964,1760999684209,-82.47085033,0.00014899,2]
[391927965,1760999686713,-300.0,0.00014899,2]
[391927966,1760999692025,-117.52914967,0.00014899,2]
[391927967,1760999692052,-59.45743265,0.00014899,2]
[391927968,1760999693713,-178.9044041,0.00014899,2]
[391927969,1760999695350,-253.47309563,0.00014899,2]
[391927970,1760999697578,-8.16506762,0.00014899,2]
[391927971,1760999697604,-345.69857119,0.00014899,2]
[391927972,1760999707585,-212.0,0.00014898,2]
[391927973,1760999707615,-9.75770419,0.00014898,2]
[391927974,1760999709197,-290.24229581,0.00014898,2]
[391927975,1760999709221,-51.07949712,0.00014898,2]
[391927976,1760999722066,-170.40639918,0.00014898,2]
[391927977,1760999723928,-372.79934136,0.00014898,2]
[391927978,1760999725634,-215.86258775,0.00014898,2]
[391927979,1760999730641,-301.2621063,0.00014898,2]
[391927980,1760999733250,-88.59006829,0.00014898,2]
[391927981,1760999733281,-154.30142881,0.00014899,2]
[391927982,1760999733310,-57.1085029,0.00014899,2]
[391927983,1760999734926,-257.18777651,0.00014899,2]
[391927984,1760999782159,-171.46007769,0.00014641,2]
[391927985,1760999785354,-217.02513888,0.00014641,2]
[391927986,1760999787561,-195.37895803,0.00014641,2]
[391927987,1760999790244,-95.1358254,0.00014641,2]
[391927988,1760999790268,-321.0,0.00014678,2]
[391927989,1760999792969,-297.85932213,0.00014678,2]
[391927990,1760999812079,-60.14067787,0.00014678,2]
[391927991,1760999812109,-142.0,0.00014692,2]
[391927992,1760999814125,-303.05328121,0.00014692,2]
[391927993,1760999816688,-196.94671879,0.00014692,2]
[391927994,1760999821176,-37.0,0.00014692,2]
[391927995,1760999821201,-188.0563808,0.000148,2]
[391927996,1760999824061,-163.1454749,0.000148,2]
[391927997,1760999825440,500.0,0.0003433,30]
[391927998,1760999825696,500.0,0.0003433,30]
[391927999,1760999826052,500.0,0.0003433,30]
[391928000,1760999826280,-480.0,0.000148,2]
[391928001,1760999826445,500.0,0.0003433,30]
[391928002,1760999826651,500.0,0.0003433,30]
[391928003,1760999827084,500.0,0.0003433,30]
[391928004,1760999827352,500.0,0.0003433,30]
[391928005,1760999827996,500.0,0.0003433,30]
[391928006,1760999828063,500.0,0.0003433,30]
[391928007,1760999828247,500.0,0.0003433,30]
[391928008,1760999828661,500.0,0.0003433,30]
[391928009,1760999828736,500.0,0.0003433,30]
[391928010,1760999828879,500.0,0.0003433,30]
[391928011,1760999829052,151.0,0.0003433,30]
[391928012,1760999829526,500.0,0.0003433,30]
[391928013,1760999829582,500.0,0.0003433,30]
[391928014,1760999829649,500.0,0.0003433,30]
[391928015,1760999829710,151.0,0.0003433,30]
[391928016,1760999829941,500.0,0.0003433,30]
[391928017,1760999829999,500.0,0.0003433,30]